[Event "FIDE WYCC Girls U18 2023"]
[Site "Montesilvano"]
[Date "2023.11.14"]
[Round "2.22"]
[White "Obada, Ema"]
[Black "Ivanovic, Tara"]
[Result "1-0"]
[ECO "C54"]
[WhiteElo "2023"]
[BlackElo "1575"]
[Annotator "NA"]
[PlyCount "55"]
[EventDate "2023.11.13"]
[EventType "swiss"]
[EventCountry "ITA"]
[SourceTitle "playchess.com"]
[Source "ChessBase"]
[SourceQuality "1"]
[TimeControl "40/5400+30:1800+30"]

1. e4 {[%emt 0:00:03]} e5 {[%emt 0:00:08]} 2. Nf3 {[%emt 0:00:08]} Nc6 {[%emt 0:00:15]} 3. Bc4 {[%emt 0:00:05]} Bc5 {[%emt 0:00:12]} 4. c3 {[%emt 0:00:17]} Nf6 {[%emt 0:00:08]} 5. d3 {[%emt 0:00:06]} a6 {[%emt 0:01:01]} 6. O-O {[%emt 0:01:29]} d6 {[%emt 0:00:36]} 7. Bb3 {[%emt 0:01:17]} Ba7 {[%emt 0:02:40]} 8. Nbd2 {[%emt 0:02:02]} O-O {[%emt 0:01:03]} 9. Re1 {[%emt 0:03:51]} Re8 {[%emt 0:09:06]} 10. h3 {[%emt 0:01:36]} h6 {[%emt 0:02:40]} 11. Nf1 {[%emt 0:00:29]} Be6 {[%emt 0:03:52]} 12. Ng3 {[%emt 0:00:29]} d5 {[%emt 0:10:33]} 13. exd5 {[%emt 0:00:09]} Bxd5 {[%emt 0:00:38]} 14. Bc2 {[%emt 0:00:26]} Qd7 {[%emt 0:13:26]} 15. b4 {[%emt 0:04:07]} Rad8 {[%emt 0:06:29]} 16. a4 {[%emt 0:12:28]} b5 {[%emt 0:03:40]} 17. Nh4 {[%emt 0:07:52]} Be6 {[%emt 0:04:07]} 18. Qf3 {[%emt 0:01:31]} Bd5 {[%emt 0:08:09]} 19. Ne4 {[%emt 0:05:25]} Nxe4 {[%emt 0:02:19]} 20. dxe4 {[%emt 0:00:05]} Bc4 {[%emt 0:01:30]} 21. Nf5 {[%emt 0:03:53]} Ne7 {[%emt 0:03:23]} 22. axb5 {[%emt 0:16:55]} Bxb5 {[%emt 0:00:53]} 23. Bb3 {[%emt 0:11:26]} Nxf5 {[%emt 0:05:17]} 24. exf5 {[%emt 0:00:17]} Qd3 {[%emt 0:02:35]} 25. Qg4 {[%emt 0:11:28]} Kf8 {[%emt 0:05:08]} 26. Bxh6 {[%emt 0:02:14]} gxh6 {[%emt 0:00:11]} 27. Rad1 {[%emt 0:00:13]} Bxf2+ {[%emt 0:11:38]} 28. Kxf2 {[%emt 0:00:26]} 1-0

[Event "FIDE WYCC Girls U18 2023"]
[Site "Montesilvano"]
[Date "2023.11.14"]
[Round "2.23"]
[White "Margadgua Erdenebayar"]
[Black "Keerti Shree Reddy"]
[Result "1-0"]
[ECO "B24"]
[WhiteElo "2013"]
[BlackElo "1741"]
[Annotator "NA"]
[PlyCount "107"]
[EventDate "2023.11.13"]
[EventType "swiss"]
[EventCountry "ITA"]
[SourceTitle "playchess.com"]
[Source "ChessBase"]
[SourceQuality "1"]
[TimeControl "40/5400+30:1800+30"]

1. e4 {[%emt 0:00:02]} c5 {[%emt 0:00:32]} 2. Nc3 {[%emt 0:00:17]} Nc6 {[%emt 0:00:07]} 3. Bb5 {[%emt 0:00:08]} g6 {[%emt 0:00:17]} 4. Bxc6 {[%emt 0:00:35]} dxc6 {[%emt 0:01:40]} 5. d3 {[%emt 0:00:40]} Bg7 {[%emt 0:01:01]} 6. Be3 {[%emt 0:02:32]} b6 {[%emt 0:04:00]} 7. Qd2 {[%emt 0:07:56]} Nf6 {[%emt 0:06:21]} 8. h3 {[%emt 0:09:28]} O-O {[%emt 0:09:48]} 9. Nf3 {[%emt 0:05:31]} Ne8 {[%emt 0:05:49]} 10. Bh6 {[%emt 0:05:01]} b5 {[%emt 0:20:10]} 11. Bxg7 {[%emt 0:07:52]} Kxg7 {[%emt 0:03:16]} 12. Ne5 {[%emt 0:01:38]} Qd6 {[%emt 0:06:06]} 13. f4 {[%emt 0:04:06]} f6 {[%emt 0:05:01]} 14. Nf3 {[%emt 0:03:23]} Nc7 {[%emt 0:02:25]} 15. e5 {[%emt 0:08:14]} Qe6 {[%emt 0:04:03]} 16. Ne4 {[%emt 0:03:50]} c4 {[%emt 0:03:09]} 17. O-O {[%emt 0:01:02]} cxd3 {[%emt 0:04:32]} 18. cxd3 {[%emt 0:05:46]} Qd5 {[%emt 0:01:53]} 19. Rfc1 {[%emt 0:07:19]} Ne6 {[%emt 0:03:00]} 20. Qb4 {[%emt 0:05:31]} Rf7 {[%emt 0:02:52]} 21. exf6+ {[%emt 0:04:55]} exf6 {[%emt 0:00:23]} 22. Qd6 {[%emt 0:00:11]} Rd7 {[%emt 0:04:17]} 23. Qxc6 {[%emt 0:03:40]} Qxc6 {[%emt 0:01:24]} 24. Rxc6 {[%emt 0:00:01]} Nxf4 {[%emt 0:02:57]} 25. Nc5 {[%emt 0:05:24]} Rf7 {[%emt 0:02:10]} 26. Nd4 {[%emt 0:02:57]} Re7 {[%emt 0:01:49]} 27. Rf1 {[%emt 0:02:05]} g5 {[%emt 0:01:05]} 28. Nxb5 {[%emt 0:00:18]} Bb7 {[%emt 0:01:11]} 29. Nxb7 {[%emt 0:01:02]} Rxb7 {[%emt 0:00:01]} 30. a4 {[%emt 0:00:37]} a6 {[%emt 0:00:57]} 31. Nc7 {[%emt 0:00:43]} Raa7 {[%emt 0:01:45]} 32. Ne6+ {[%emt 0:01:00]} Nxe6 {[%emt 0:00:12]} 33. Rxe6 {[%emt 0:00:00]} Rxb2 {[%emt 0:00:31]} 34. Rfxf6 {[%emt 0:00:41]} Rc7 {[%emt 0:00:40]} 35. Rf3 {[%emt 0:00:47]} g4 {[%emt 0:01:30]} 36. hxg4 {[%emt 0:00:59]} Rcc2 {[%emt 0:00:22]} 37. Rg3 {[%emt 0:00:06]} a5 {[%emt 0:00:28]} 38. Re5 {[%emt 0:00:24]} Rb1+ {[%emt 0:00:40]} 39. Kh2 {[%emt 0:00:06]} Rcc1 {[%emt 0:00:07]} 40. Rge3 {[%emt 0:00:00]} Rb4 {[%emt 0:00:00]} 41. Rxa5 {[%emt 0:10:01]} Ra1 {[%emt 0:03:58]} 42. Rg5+ {[%emt 0:12:31]} Kf6 {[%emt 0:01:08]} 43. Rf5+ {[%emt 0:00:04]} Kg7 {[%emt 0:00:53]} 44. a5 {[%emt 0:00:52]} Ra3 {[%emt 0:03:14]} 45. Re7+ {[%emt 0:04:24]} Kg6 {[%emt 0:00:47]} 46. Re6+ {[%emt 0:00:01]} Kg7 {[%emt 0:00:11]} 47. Rd5 {[%emt 0:00:48]} Kf7 {[%emt 0:07:58]} 48. Rc6 {[%emt 0:01:49]} Ke7 {[%emt 0:01:28]} 49. Rh5 {[%emt 0:00:47]} Rxd3 {[%emt 0:02:28]} 50. Rxh7+ {[%emt 0:00:13]} Kd8 {[%emt 0:00:06]} 51. Ra6 {[%emt 0:00:40]} Rb8 {[%emt 0:01:05]} 52. Rh8+ {[%emt 0:00:09]} Kc7 {[%emt 0:00:03]} 53. Ra7+ {[%emt 0:00:06]} Rb7 {[%emt 0:00:17]} 54. Rh7+ {[%emt 0:00:05]} 1-0

[Event "FIDE WYCC Girls U18 2023"]
[Site "Montesilvano"]
[Date "2023.11.14"]
[Round "2.24"]
[White "Voriskova, Anna"]
[Black "Sele, Timea"]
[Result "1-0"]
[ECO "C54"]
[WhiteElo "2065"]
[BlackElo "1456"]
[Annotator "NA"]
[PlyCount "65"]
[EventDate "2023.11.13"]
[EventType "swiss"]
[EventCountry "ITA"]
[SourceTitle "playchess.com"]
[Source "ChessBase"]
[SourceQuality "1"]
[TimeControl "40/5400+30:1800+30"]

1. e4 {[%emt 0:00:03]} e5 {[%emt 0:00:14]} 2. Nf3 {[%emt 0:00:07]} Nc6 {[%emt 0:00:18]} 3. Bc4 {[%emt 0:00:08]} Bc5 {[%emt 0:00:30]} 4. c3 {[%emt 0:00:49]} Nf6 {[%emt 0:03:06]} 5. d4 {[%emt 0:00:26]} exd4 {[%emt 0:01:33]} 6. cxd4 {[%emt 0:03:03]} Bb4+ {[%emt 0:02:54]} 7. Bd2 {[%emt 0:00:17]} Bxd2+ {[%emt 0:01:29]} 8. Nbxd2 {[%emt 0:00:09]} O-O {[%emt 0:08:43]} 9. e5 {[%emt 0:09:26]} d5 {[%emt 0:07:29]} 10. Bd3 {[%emt 0:00:51]} Re8 {[%emt 0:02:16]} 11. O-O {[%emt 0:00:30]} Nh5 {[%emt 0:03:21]} 12. Rc1 {[%emt 0:07:58]} Nf4 {[%emt 0:03:53]} 13. Bb1 {[%emt 0:00:16]} Bg4 {[%emt 0:00:41]} 14. Nb3 {[%emt 0:09:31]} Ne6 {[%emt 0:07:02]} 15. Qd3 {[%emt 0:06:59]} g6 {[%emt 0:01:58]} 16. Rfd1 {[%emt 0:03:05]} Ne7 {[%emt 0:09:38]} 17. Nc5 {[%emt 0:07:38]} Nxc5 {[%emt 0:06:28]} 18. Rxc5 {[%emt 0:00:12]} c6 {[%emt 0:00:29]} 19. b4 {[%emt 0:04:30]} a6 {[%emt 0:01:36]} 20. h3 {[%emt 0:01:45]} Bxf3 {[%emt 0:06:52]} 21. Qxf3 {[%emt 0:00:10]} Nf5 {[%emt 0:00:36]} 22. Bxf5 {[%emt 0:00:39]} gxf5 {[%emt 0:00:27]} 23. Qxf5 {[%emt 0:00:14]} Re6 {[%emt 0:00:58]} 24. Rd3 {[%emt 0:03:39]} Rg6 {[%emt 0:04:48]} 25. Rf3 {[%emt 0:01:16]} Qe7 {[%emt 0:01:03]} 26. a4 {[%emt 0:01:23]} Qe8 {[%emt 0:04:34]} 27. h4 {[%emt 0:01:15]} b6 {[%emt 0:03:16]} 28. Rcc3 {[%emt 0:02:38]} Qe6 {[%emt 0:02:06]} 29. Qf4 {[%emt 0:02:48]} Rc8 {[%emt 0:02:33]} 30. h5 {[%emt 0:01:28]} Rg4 {[%emt 0:01:13]} 31. Rg3 {[%emt 0:01:23]} Rxg3 {[%emt 0:00:07]} 32. Rxg3+ {[%emt 0:00:37]} Kh8 {[%emt 0:02:45]} 33. Qg5 {[%emt 0:01:07]} 1-0

[Event "FIDE WYCC Girls U18 2023"]
[Site "Montesilvano"]
[Date "2023.11.14"]
[Round "2.25"]
[White "Saraci, Rinesa"]
[Black "Groeschel, Karoline"]
[Result "1/2-1/2"]
[ECO "A45"]
[WhiteElo "1481"]
[BlackElo "1924"]
[Annotator "ChessBase"]
[PlyCount "256"]
[EventDate "2023.11.13"]
[EventType "swiss"]
[EventCountry "ITA"]
[SourceTitle "playchess.com"]
[Source "ChessBase"]
[SourceQuality "1"]
[TimeControl "40/5400+30:1800+30"]

1. d4 {[%emt 0:00:04]} Nf6 {[%emt 0:00:04]} 2. Bf4 {[%emt 0:00:14]} d5 {[%emt 0:00:05]} 3. e3 {[%emt 0:00:09]} c5 {[%emt 0:00:03]} 4. Nf3 {[%emt 0:00:31]} Nc6 {[%emt 0:00:09]} 5. c3 {[%emt 0:01:21]} Qb6 {[%emt 0:00:40]} 6. Qb3 {[%emt 0:02:06]} c4 {[%emt 0:01:03]} 7. Qxb6 {[%emt 0:05:07]} axb6 {[%emt 0:00:04]} 8. Nbd2 {[%emt 0:02:37]} b5 {[%emt 0:04:22]} 9. Ne5 {[%emt 0:04:22]} b4 {[%emt 0:13:57]} 10. Nxc6 {[%emt 0:12:20]} bxc6 {[%emt 0:07:38]} 11. e4 {[%emt 0:06:34]} bxc3 {[%emt 0:05:15]} 12. bxc3 {[%emt 0:00:13]} e6 {[%emt 0:01:43]} 13. a4 {[%emt 0:04:01]} Ba6 {[%emt 0:09:38]} 14. Be2 {[%emt 0:08:06]} Nd7 {[%emt 0:15:32]} 15. O-O {[%emt 0:08:02]} Be7 {[%emt 0:01:26]} 16. Rfe1 {[%emt 0:14:26]} Nb6 {[%emt 0:07:39]} 17. Bc7 {[%emt 0:03:47]} Nc8 {[%emt 0:01:25]} 18. Bd1 {[%emt 0:04:19]} Kd7 {[%emt 0:01:05]} 19. Bg3 {[%emt 0:01:44]} Bd6 {[%emt 0:01:42]} 20. Bxd6 {[%emt 0:02:08]} Nxd6 {[%emt 0:00:05]} 21. Bc2 {[%emt 0:00:39]} h6 {[%emt 0:03:48]} 22. Nf3 {[%emt 0:02:31]} Rhb8 {[%emt 0:01:57]} 23. exd5 {[%emt 0:06:53]} cxd5 {[%emt 0:00:24]} 24. Reb1 {[%emt 0:02:24]} Kc7 {[%emt 0:02:44]} 25. Ne5 {[%emt 0:03:04]} Bc8 {[%emt 0:06:02]} 26. Kf1 {[%emt 0:02:33]} f6 {[%emt 0:03:20]} 27. Ng6 {[%emt 0:00:38]} Bd7 {[%emt 0:03:37]} 28. Rxb8 {[%emt 0:01:51]} Rxb8 {[%emt 0:00:37]} 29. Ra2 {[%emt 0:00:30]} Nb7 {[%emt 0:00:46]} 30. Nf4 {[%emt 0:01:18]} g5 {[%emt 0:03:07]} 31. Nh5 {[%emt 0:00:26]} f5 {[%emt 0:00:34]} 32. f4 {[%emt 0:00:54]} Na5 {[%emt 0:00:44]} 33. fxg5 {[%emt 0:00:25]} hxg5 {[%emt 0:00:18]} 34. h3 {[%emt 0:00:31]} Nb3 {[%emt 0:01:00]} 35. Ke1 {[%emt 0:00:35]} Ra8 {[%emt 0:01:45]} 36. Ng7 {[%emt 0:00:30]} Kd6 {[%emt 0:00:42]} 37. Rb2 {[%emt 0:00:30]} Bxa4 {[%emt 0:00:45]} 38. Nh5 {[%emt 0:00:30]} Rb8 {[%emt 0:01:28]} 39. Ra2 {[%emt 0:00:19]} Bc6 {[%emt 0:01:07]} 40. Ra6 {[%emt 0:00:00]} Ra8 {[%emt 0:00:00]} 41. Rxa8 {[%emt 0:06:45]} Bxa8 {[%emt 0:01:06]} 42. g3 {[%emt 0:00:31]} Bc6 {[%emt 0:01:44]} 43. h4 {[%emt 0:00:53]} gxh4 {[%emt 0:02:34]} 44. gxh4 {[%emt 0:00:09]} Ke7 {[%emt 0:00:33]} 45. Nf4 {[%emt 0:01:27]} Be8 {[%emt 0:04:51]} 46. Bd1 {[%emt 0:07:56]} Na5 {[%emt 0:03:56]} 47. Kf2 {[%emt 0:03:29]} Kf6 {[%emt 0:02:24]} 48. Bf3 {[%emt 0:01:15]} Bf7 {[%emt 0:00:34]} 49. Kg3 {[%emt 0:02:03]} Nb7 {[%emt 0:00:33]} 50. Ne2 {[%emt 0:03:56]} e5 {[%emt 0:06:32]} 51. dxe5+ Kxe5 {[%emt 0:00:12]} 52. h5 {[%emt 0:02:00]} Nd6 {[%emt 0:01:13]} 53. h6 {[%emt 0:02:43]} Bg8 {[%emt 0:00:37]} 54. Kh4 {[%emt 0:01:11]} Ne4 {[%emt 0:05:02]} 55. Bh5 {[%emt 0:01:37]} Bh7 {[%emt 0:00:44]} 56. Bf7 {[%emt 0:00:55]} f4 {[%emt 0:01:04]} 57. Nxf4 {[%emt 0:02:16]} Kxf4 {[%emt 0:00:18]} 58. Bxd5 {[%emt 0:00:04]} Nd6 {[%emt 0:01:27]} 59. Kh5 {[%emt 0:00:27]} Ke5 {[%emt 0:01:20]} 60. Bf3 {[%emt 0:00:57]} Kf6 {[%emt 0:00:53]} 61. Bd5 {[%emt 0:00:37]} Bd3 {[%emt 0:01:54]} 62. Bf3 {[%emt 0:00:32]} Bg6+ {[%emt 0:00:53]} 63. Kg4 {[%emt 0:00:25]} Nf5 {[%emt 0:00:35]} 64. Be2 {[%emt 0:00:35]} Nxh6+ {[%emt 0:00:14]} 65. Kf4 {[%emt 0:00:11]} Bf7 {[%emt 0:00:23]} 66. Ke4 {[%emt 0:00:40]} Nf5 {[%emt 0:00:50]} 67. Kf4 {[%emt 0:00:31]} Nd6 {[%emt 0:00:36]} 68. Ke3 {[%emt 0:00:19]} Ke5 {[%emt 0:00:11]} 69. Kd2 {[%emt 0:00:50]} Ne4+ {[%emt 0:00:23]} 70. Kc2 {[%emt 0:00:26]} Kf4 {[%emt 0:00:04]} 71. Bf1 {[%emt 0:00:34]} Ke3 {[%emt 0:00:44]} 72. Bh3 {[%emt 0:00:23]} Bg6 {[%emt 0:01:07]} 73. Kb2 {[%emt 0:00:19]} Kd2 {[%emt 0:00:26]} 74. Be6 {[%emt 0:00:22]} Nd6 {[%emt 0:00:07]} 75. Bd5 {[%emt 0:00:39]} Bd3 {[%emt 0:00:10]} 76. Be6 {[%emt 0:00:48]} Ne4 {[%emt 0:00:21]} 77. Bxc4 {[%emt 0:00:26]} Bxc4 {[%emt 0:00:12]} 78. Ka3 {[%emt 0:00:29]} Kxc3 {[%emt 0:00:35]} 79. Ka4 {[%emt 0:00:09]} Kd4 {[%emt 0:00:39]} 80. Kb4 {[%emt 0:00:17]} Nc3 {[%emt 0:01:14]} 81. Ka3 {[%emt 0:00:15]} Nd1 {[%emt 0:01:02]} 82. Kb4 {[%emt 0:00:27]} Nb2 {[%emt 0:00:40]} 83. Ka3 {[%emt 0:00:28]} Nd3 {[%emt 0:00:11]} 84. Ka4 {[%emt 0:00:13]} Kc5 {[%emt 0:00:16]} 85. Ka3 {[%emt 0:00:19]} Bd5 {[%emt 0:00:38]} 86. Ka4 {[%emt 0:00:11]} Kc4 {[%emt 0:00:49]} 87. Ka3 {[%emt 0:00:25]} Bc6 {[%emt 0:00:21]} 88. Ka2 {[%emt 0:00:10]} Kc3 {[%emt 0:00:19]} 89. Ka3 {[%emt 0:00:24]} Nc5 {[%emt 0:00:15]} 90. Ka2 {[%emt 0:00:09]} Nb3 {[%emt 0:00:06]} 91. Ka3 {[%emt 0:00:18]} Be4 {[%emt 0:00:08]} 92. Ka4 {[%emt 0:00:54]} Nd4 {[%emt 0:00:05]} 93. Ka3 {[%emt 0:00:58]} Bc2 {[%emt 0:02:02]} 94. Ka2 {[%emt 0:00:19]} Nb3 {[%emt 0:00:05]} 95. Ka3 {[%emt 0:00:10]} Bb1 {[%emt 0:00:03]} 96. Ka4 {[%emt 0:00:10]} Nd4 {[%emt 0:00:04]} 97. Ka3 {[%emt 0:00:21]} Nb5+ {[%emt 0:00:04]} 98. Ka4 {[%emt 0:00:10]} Kc4 {[%emt 0:00:05]} 99. Ka5 {[%emt 0:00:12]} Kc5 {[%emt 0:00:10]} 100. Ka6 {[%emt 0:00:47]} Nd6 {[%emt 0:00:15]} 101. Ka5 {[%emt 0:00:42]} Bc2 {[%emt 0:00:14]} 102. Ka6 {[%emt 0:00:13]} Bd1 {[%emt 0:00:24]} 103. Ka7 {[%emt 0:01:16]} Be2 {[%emt 0:00:21]} 104. Kb8 {[%emt 0:00:23]} Kb6 {[%emt 0:00:05]} 105. Ka8 {[%emt 0:00:10]} Nb7 {[%emt 0:00:13]} 106. Kb8 {[%emt 0:00:08]} Nc5 {[%emt 0:00:16]} 107. Kc8 {[%emt 0:00:16]} Bg4+ {[%emt 0:00:06]} 108. Kd8 {[%emt 0:00:16]} Kc6 {[%emt 0:00:20]} 109. Ke7 {[%emt 0:00:09]} Ne4 {[%emt 0:00:07]} 110. Kf7 {[%emt 0:00:40]} Kd6 {[%emt 0:00:15]} 111. Kf8 {[%emt 0:00:58]} Ke6 {[%emt 0:00:38]} 112. Kg7 {[%emt 0:00:30]} Bf5 {[%emt 0:00:18]} 113. Kf8 {[%emt 0:00:37]} Ng5 {[%emt 0:00:28]} 114. Kg7 {[%emt 0:00:18]} Nf7 {[%emt 0:00:22]} 115. Kf8 {[%emt 0:01:04]} Kf6 {[%emt 0:00:04]} 116. Kg8 {[%emt 0:00:14]} Be4 {[%emt 0:00:04]} 117. Kf8 {[%emt 0:00:12]} Bh7 {[%emt 0:00:05]} 118. Ke8 {[%emt 0:00:08]} Ne5 {[%emt 0:00:04]} 119. Kf8 {[%emt 0:00:17]} Nd7+ {[%emt 0:00:04]} 120. Ke8 {[%emt 0:00:10]} Ke6 {[%emt 0:00:03]} 121. Kd8 {[%emt 0:00:29]} Kd6 {[%emt 0:00:30]} 122. Ke8 {[%emt 0:00:36]} Bg6+ {[%emt 0:00:05]} 123. Kd8 {[%emt 0:00:06]} Nc5 {[%emt 0:00:06]} 124. Kc8 {[%emt 0:00:08]} Bh5 {[%emt 0:00:17]} 125. Kd8 {[%emt 0:01:35]} Nb7+ {[%emt 0:00:05]} 126. Kc8 {[%emt 0:00:07]} Kc6 {[%emt 0:00:03]} 127. Kb8 {[%emt 0:00:17]} Kb6 {[%emt 0:00:04]} 128. Kc8 {[%emt 0:00:09]} Bg4+ {[%emt 0:00:05]} 1/2-1/2

[Event "FIDE WYCC Girls U18 2023"]
[Site "Montesilvano"]
[Date "2023.11.14"]
[Round "2.26"]
[White "Galli, Maria Vittoria"]
[Black "Menon, Gauri"]
[Result "1/2-1/2"]
[ECO "C84"]
[WhiteElo "1452"]
[BlackElo "1821"]
[Annotator "NA"]
[PlyCount "74"]
[EventDate "2023.11.13"]
[EventType "swiss"]
[EventCountry "ITA"]
[SourceTitle "playchess.com"]
[Source "ChessBase"]
[SourceQuality "1"]
[TimeControl "40/5400+30:1800+30"]

1. e4 {[%emt 0:00:03]} e5 {[%emt 0:00:10]} 2. Nf3 {[%emt 0:00:07]} Nc6 {[%emt 0:00:04]} 3. Bb5 {[%emt 0:00:13]} a6 {[%emt 0:00:07]} 4. Ba4 {[%emt 0:00:09]} Nf6 {[%emt 0:00:32]} 5. O-O {[%emt 0:01:17]} Be7 {[%emt 0:00:45]} 6. Nc3 {[%emt 0:01:20]} b5 {[%emt 0:00:18]} 7. Bb3 {[%emt 0:00:10]} O-O {[%emt 0:03:16]} 8. Re1 {[%emt 0:02:11]} d6 {[%emt 0:03:06]} 9. h3 {[%emt 0:01:14]} Na5 {[%emt 0:06:46]} 10. d4 {[%emt 0:08:09]} Nxb3 {[%emt 0:02:40]} 11. axb3 {[%emt 0:00:32]} exd4 {[%emt 0:00:29]} 12. Nxd4 {[%emt 0:00:38]} Bb7 {[%emt 0:01:06]} 13. Nf5 {[%emt 0:03:21]} Re8 {[%emt 0:10:14]} 14. Nd5 {[%emt 0:13:35]} Nxd5 {[%emt 0:05:13]} 15. exd5 {[%emt 0:00:37]} Bf6 {[%emt 0:02:09]} 16. c4 {[%emt 0:03:28]} Qd7 {[%emt 0:11:08]} 17. Ne3 {[%emt 0:05:16]} c6 {[%emt 0:11:39]} 18. dxc6 {[%emt 0:05:42]} Qxc6 {[%emt 0:00:15]} 19. Nd5 {[%emt 0:07:09]} Rxe1+ {[%emt 0:03:24]} 20. Qxe1 {[%emt 0:00:10]} Re8 {[%emt 0:08:08]} 21. Qd1 {[%emt 0:06:10]} bxc4 {[%emt 0:07:29]} 22. bxc4 {[%emt 0:05:12]} Re4 {[%emt 0:17:35]} 23. Nxf6+ {[%emt 0:02:49]} gxf6 24. Qd5 {[%emt 0:01:33]} Re1+ {[%emt 0:02:02]} 25. Kh2 {[%emt 0:00:09]} Qc7 {[%emt 0:01:02]} 26. Qd4 Re4 {[%emt 0:01:31]} 27. Qxf6 {[%emt 0:03:47]} Re6 {[%emt 0:00:33]} 28. Qf4 {[%emt 0:03:49]} Rg6 {[%emt 0:00:32]} 29. f3 {[%emt 0:02:11]} Qb6 {[%emt 0:00:44]} 30. Qe3 {[%emt 0:01:54]} Qb4 31. Qc3 {[%emt 0:01:11]} Qxc3 {[%emt 0:01:49]} 32. bxc3 {[%emt 0:00:46]} Re6 33. Bf4 Re2 {[%emt 0:01:40]} 34. Kg3 {[%emt 0:00:50]} Rc2 {[%emt 0:00:00]} 35. Bxd6 {[%emt 0:00:44]} Rxc3 36. c5 {[%emt 0:01:03]} Rc2 {[%emt 0:00:54]} 37. Rb1 {[%emt 0:01:48]} Bc8 1/2-1/2

[Event "FIDE WYCC Girls U18 2023"]
[Site "Montesilvano"]
[Date "2023.11.14"]
[Round "2.27"]
[White "Stagno, Milena"]
[Black "Alexandrova, Angelina"]
[Result "1/2-1/2"]
[ECO "C18"]
[WhiteElo "1444"]
[BlackElo "1814"]
[Annotator "NA"]
[PlyCount "79"]
[EventDate "2023.11.13"]
[EventType "swiss"]
[EventCountry "ITA"]
[SourceTitle "playchess.com"]
[Source "ChessBase"]
[SourceQuality "1"]
[TimeControl "40/5400+30:1800+30"]

1. e4 {[%emt 0:00:03]} e6 {[%emt 0:00:03]} 2. d4 {[%emt 0:00:02]} d5 {[%emt 0:00:03]} 3. Nc3 {[%emt 0:00:05]} Bb4 {[%emt 0:00:12]} 4. e5 {[%emt 0:00:20]} c5 {[%emt 0:00:24]} 5. a3 {[%emt 0:00:48]} Bxc3+ {[%emt 0:00:19]} 6. bxc3 {[%emt 0:00:07]} Qc7 {[%emt 0:04:06]} 7. Bd2 {[%emt 0:03:18]} Ne7 {[%emt 0:04:12]} 8. Qg4 {[%emt 0:25:48]} O-O {[%emt 0:01:00]} 9. Bd3 {[%emt 0:00:22]} c4 {[%emt 0:05:58]} 10. Bh6 {[%emt 0:00:52]} Ng6 {[%emt 0:00:36]} 11. Bxg6 {[%emt 0:00:09]} fxg6 {[%emt 0:09:34]} 12. Be3 {[%emt 0:00:29]} Qf7 {[%emt 0:05:09]} 13. Kd2 {[%emt 0:09:29]} Bd7 {[%emt 0:07:35]} 14. Ne2 {[%emt 0:05:24]} Qf5 {[%emt 0:02:38]} 15. Qg3 {[%emt 0:02:47]} Ba4 {[%emt 0:01:15]} 16. Rac1 {[%emt 0:02:39]} Na6 {[%emt 0:03:24]} 17. h4 {[%emt 0:02:49]} Nc7 {[%emt 0:02:11]} 18. h5 {[%emt 0:05:45]} g5 {[%emt 0:09:57]} 19. Qxg5 {[%emt 0:01:32]} Qxg5 {[%emt 0:00:19]} 20. Bxg5 {[%emt 0:00:19]} Rxf2 {[%emt 0:00:28]} 21. g3 {[%emt 0:02:39]} Nb5 {[%emt 0:11:00]} 22. Be3 {[%emt 0:01:56]} Rf7 {[%emt 0:06:13]} 23. Rb1 {[%emt 0:01:26]} a5 {[%emt 0:04:23]} 24. Nf4 {[%emt 0:02:34]} Re7 {[%emt 0:01:13]} 25. Rhf1 {[%emt 0:01:05]} Ra6 {[%emt 0:02:31]} 26. Rf2 {[%emt 0:01:52]} Rb6 {[%emt 0:05:32]} 27. Rbf1 {[%emt 0:02:23]} Rf7 {[%emt 0:03:25]} 28. g4 {[%emt 0:01:33]} Nxa3 {[%emt 0:00:33]} 29. Ra1 {[%emt 0:00:23]} Nb1+ {[%emt 0:00:18]} 30. Ke1 {[%emt 0:02:01]} Nxc3 {[%emt 0:01:56]} 31. Bd2 {[%emt 0:02:49]} Rb1+ {[%emt 0:02:20]} 32. Rxb1 {[%emt 0:01:05]} Nxb1 {[%emt 0:00:02]} 33. Bxa5 {[%emt 0:00:09]} Na3 {[%emt 0:00:55]} 34. c3 {[%emt 0:01:25]} Bd7 {[%emt 0:00:53]} 35. Bb4 {[%emt 0:01:19]} Nb5 {[%emt 0:02:18]} 36. Ra2 {[%emt 0:01:44]} Nc7 {[%emt 0:00:14]} 37. Rf2 {[%emt 0:00:16]} Ba4 {[%emt 0:02:16]} 38. Bd6 {[%emt 0:02:02]} Nb5 {[%emt 0:00:19]} 39. Bb4 {[%emt 0:00:06]} Nc7 {[%emt 0:00:47]} 40. Bd6 1/2-1/2

[Event "FIDE WYCC Girls U18 2023"]
[Site "Montesilvano"]
[Date "2023.11.14"]
[Round "2.28"]
[White "Darweeche, Roaa"]
[Black "Hernandez Ortega, Carolina"]
[Result "0-1"]
[ECO "A05"]
[WhiteElo "1406"]
[BlackElo "1796"]
[Annotator "NA"]
[PlyCount "88"]
[EventDate "2023.11.13"]
[EventType "swiss"]
[EventCountry "ITA"]
[SourceTitle "playchess.com"]
[Source "ChessBase"]
[SourceQuality "1"]
[TimeControl "40/5400+30:1800+30"]

1. Nf3 {[%emt 0:00:05]} Nf6 {[%emt 0:00:17]} 2. c4 {[%emt 0:00:07]} e6 {[%emt 0:00:14]} 3. e3 {[%emt 0:00:17]} d5 {[%emt 0:01:25]} 4. d4 {[%emt 0:00:52]} Nbd7 {[%emt 0:01:02]} 5. Nc3 {[%emt 0:00:45]} Bb4 {[%emt 0:01:01]} 6. a3 {[%emt 0:00:28]} Bxc3+ {[%emt 0:01:04]} 7. bxc3 {[%emt 0:00:05]} O-O {[%emt 0:00:44]} 8. Bd3 {[%emt 0:01:22]} c5 {[%emt 0:01:17]} 9. O-O {[%emt 0:01:41]} b6 {[%emt 0:01:05]} 10. a4 {[%emt 0:11:01]} Re8 {[%emt 0:05:23]} 11. cxd5 {[%emt 0:05:35]} Nxd5 {[%emt 0:02:12]} 12. Qc2 {[%emt 0:00:31]} cxd4 {[%emt 0:04:23]} 13. cxd4 {[%emt 0:02:57]} h6 {[%emt 0:01:44]} 14. Ba3 Bb7 {[%emt 0:01:06]} 15. Rfc1 {[%emt 0:04:08]} Rc8 {[%emt 0:06:48]} 16. Qb2 {[%emt 0:00:29]} Qf6 {[%emt 0:00:52]} 17. Nd2 {[%emt 0:01:34]} Ba8 {[%emt 0:11:32]} 18. Ne4 {[%emt 0:02:48]} Qh4 {[%emt 0:01:43]} 19. Nd6 {[%emt 0:06:08]} Rxc1+ {[%emt 0:00:35]} 20. Rxc1 {[%emt 0:00:02]} Rd8 {[%emt 0:00:08]} 21. Nc8 {[%emt 0:06:11]} Qg5 {[%emt 0:05:01]} 22. Be4 {[%emt 0:05:47]} N7f6 {[%emt 0:08:16]} 23. Bf3 {[%emt 0:02:48]} a6 {[%emt 0:06:40]} 24. Ne7+ {[%emt 0:12:27]} Nxe7 {[%emt 0:02:46]} 25. Bxe7 {[%emt 0:00:07]} Bxf3 {[%emt 0:00:17]} 26. g3 {[%emt 0:01:31]} Re8 {[%emt 0:00:38]} 27. Bd6 {[%emt 0:00:29]} Qd5 {[%emt 0:00:58]} 28. Qxb6 {[%emt 0:01:05]} Bh1 {[%emt 0:00:19]} 29. Kf1 {[%emt 0:01:38]} Qg2+ {[%emt 0:01:52]} 30. Ke2 {[%emt 0:00:58]} Qf3+ {[%emt 0:00:13]} 31. Ke1 {[%emt 0:00:38]} Ne4 {[%emt 0:01:03]} 32. Rc2 {[%emt 0:01:44]} Qg2 {[%emt 0:02:12]} 33. Qxa6 {[%emt 0:01:41]} Qg1+ {[%emt 0:00:34]} 34. Ke2 {[%emt 0:00:19]} Qxf2+ {[%emt 0:00:48]} 35. Kd1 {[%emt 0:02:17]} Bf3+ {[%emt 0:00:22]} 36. Kc1 {[%emt 0:00:12]} Qxe3+ {[%emt 0:00:11]} 37. Kb1 {[%emt 0:00:50]} Qb3+ {[%emt 0:00:34]} 38. Kc1 {[%emt 0:01:42]} Nxd6 {[%emt 0:00:35]} 39. Qxd6 {[%emt 0:00:24]} Be4 {[%emt 0:00:15]} 40. Rb2 {[%emt 0:00:00]} Qc3+ {[%emt 0:00:00]} 41. Kd1 {[%emt 0:03:33]} Qxb2 {[%emt 0:00:22]} 42. Qf4 {[%emt 0:01:06]} Rc8 {[%emt 0:00:29]} 43. Qd2 {[%emt 0:01:06]} Rc2 {[%emt 0:00:14]} 44. Qe3 {[%emt 0:00:22]} Qb1+ {[%emt 0:00:10]} 0-1